[Event "III Duchamp Open 2019"]
[Site "Rio de Janeiro"]
[Date "2019.12.08"]
[Round "3.10"]
[White "Coelho, Ramyres Santana"]
[Black "Roselli Mailhe, Bernardo"]
[Result "0-1"]
[ECO "A48"]
[WhiteElo "1979"]
[BlackElo "2442"]
[Annotator "RC"]
[PlyCount "98"]
[EventDate "2019.12.07"]
[EventType "swiss"]
[EventCountry "BRA"]
[SourceTitle "playchess.com"]
[Source "ChessBase"]
[SourceQuality "1"]
[TimeControl "40/5400+30:1800+30"]

1. d4 {[%emt 0:08:47]} Nf6 {[%emt 0:00:00]} 2. Nf3 {[%emt 0:00:17]} g6 {[%emt 0:00:00]} 3. Bf4 {[%emt 0:00:17]} Bg7 {[%emt 0:00:00]} 4. e3 {[%emt 0:00:17]} d6 {[%emt 0:00:00]} 5. h3 {[%emt 0:00:12]} O-O {[%emt 0:00:00]} 6. Be2 {[%emt 0:00:16]} c5 {[%emt 0:00:13]} 7. c3 {[%emt 0:00:55]} Nc6 {[%emt 0:00:05]} 8. O-O {[%emt 0:00:21]} cxd4 {[%emt 0:00:37]} 9. exd4 {[%emt 0:05:12]} Nd5 {[%emt 0:00:20]} 10. Bh2 {[%emt 0:03:11]} e5 {[%emt 0:00:08]} 11. Na3 {[%emt 0:02:52]} Re8 {[%emt 0:06:01]} 12. Bc4 {[%emt 0:03:06]} Nb6 {[%emt 0:12:40]} 13. dxe5 {[%emt 0:05:55]} dxe5 {[%emt 0:03:46]} 14. Qxd8 {[%emt 0:02:02]} Nxd8 {[%emt 0:00:29]} 15. Rfe1 {[%emt 0:01:15]} Nxc4 {[%emt 0:03:23]} 16. Nxc4 {[%emt 0:01:17]} f6 {[%emt 0:00:10]} 17. Nd6 {[%emt 0:06:28]} Re7 {[%emt 0:01:47]} 18. Nxc8 {[%emt 0:05:05]} Rxc8 {[%emt 0:00:05]} 19. Rad1 {[%emt 0:01:12]} Ne6 {[%emt 0:01:41]} 20. Nd2 {[%emt 0:02:10]} Rd8 {[%emt 0:06:33]} 21. Nc4 {[%emt 0:08:57]} Red7 {[%emt 0:00:15]} 22. Ne3 {[%emt 0:05:11]} Rd2 {[%emt 0:00:39]} 23. Rxd2 {[%emt 0:09:22]} Rxd2 {[%emt 0:00:05]} 24. Nc4 {[%emt 0:00:22]} Rc2 {[%emt 0:06:28]} 25. f4 {[%emt 0:00:05]} Nxf4 {[%emt 0:01:51]} 26. Bxf4 {[%emt 0:02:18]} exf4 {[%emt 0:00:04]} 27. Re8+ {[%emt 0:00:10]} Bf8 {[%emt 0:00:04]} 28. a4 {[%emt 0:03:58]} Kg7 {[%emt 0:07:54]} 29. Rc8 {[%emt 0:00:23]} b6 {[%emt 0:00:41]} 30. Rc7+ {[%emt 0:01:33]} Kh6 {[%emt 0:00:19]} 31. Rf7 {[%emt 0:03:29]} Bc5+ {[%emt 0:03:10]} 32. Kf1 {[%emt 0:00:08]} Kg5 {[%emt 0:01:06]} 33. b4 {[%emt 0:04:32]} Rxc3 {[%emt 0:09:40]} 34. bxc5 {[%emt 0:00:53]} Rxc4 {[%emt 0:00:07]} 35. cxb6 {[%emt 0:00:11]} axb6 {[%emt 0:00:05]} 36. Rb7 {[%emt 0:00:14]} Rxa4 {[%emt 0:04:07]} 37. Rxb6 {[%emt 0:00:06]} Ra2 {[%emt 0:04:59]} 38. Rb3 {[%emt 0:03:00]} f5 {[%emt 0:02:56]} 39. Rf3 {[%emt 0:01:27]} Ra4 {[%emt 0:00:37]} 40. Kf2 {[%emt 0:00:38]} Kh4 {[%emt 0:00:23]} 41. Rb3 {[%emt 0:31:00]} g5 {[%emt 0:34:05]} 42. Rb5 {[%emt 0:03:15]} Ra2+ {[%emt 0:01:08]} 43. Kf1 {[%emt 0:03:50]} g4 {[%emt 0:04:01]} 44. Rxf5 {[%emt 0:00:08]} Kg3 {[%emt 0:00:04]} 45. hxg4 {[%emt 0:05:20]} Rf2+ {[%emt 0:00:36]} 46. Ke1 {[%emt 0:00:07]} Rxg2 {[%emt 0:00:12]} 47. g5 {[%emt 0:00:00]} f3 {[%emt 0:00:00]} 48. Rf7 {[%emt 0:00:00]} Rg1+ {[%emt 0:00:00]} 49. Kd2 {[%emt 0:00:00]} f2 {[%emt 0:00:00]} 0-1

[Event "III Duchamp Open 2019"]
[Site "Rio de Janeiro"]
[Date "2019.12.09"]
[Round "3.15"]
[White "Lage, Pedro Ferreira"]
[Black "Fernandez, Maria Florencia"]
[Result "1/2-1/2"]
[ECO "A06"]
[WhiteElo "2021"]
[BlackElo "2241"]
[Annotator "RC"]
[PlyCount "147"]
[EventDate "2019.12.07"]
[EventType "swiss"]
[EventCountry "BRA"]
[SourceTitle "playchess.com"]
[Source "ChessBase"]
[SourceQuality "1"]
[TimeControl "40/5400+30:1800+30"]

1. Nf3 {[%emt 0:17:13]} d5 {[%emt 0:00:00]} 2. g3 {[%emt 0:00:08]} Nf6 {[%emt 0:00:11]} 3. Bg2 {[%emt 0:00:10]} Nc6 {[%emt 0:00:22]} 4. d4 {[%emt 0:00:30]} Bf5 {[%emt 0:00:49]} 5. O-O {[%emt 0:01:03]} e6 {[%emt 0:00:21]} 6. c4 {[%emt 0:06:16]} Be7 {[%emt 0:03:43]} 7. Nbd2 {[%emt 0:07:45]} O-O {[%emt 0:05:32]} 8. b3 {[%emt 0:01:33]} a5 {[%emt 0:04:34]} 9. a3 {[%emt 0:03:37]} Ne4 {[%emt 0:08:03]} 10. Bb2 {[%emt 0:01:05]} Bf6 11. Rc1 {[%emt 0:03:34]} Ra6 {[%emt 0:10:09]} 12. e3 {[%emt 0:10:37]} h5 13. Ne1 {[%emt 0:13:54]} h4 {[%emt 0:10:16]} 14. Nxe4 {[%emt 0:01:27]} dxe4 {[%emt 0:01:52]} 15. Qc2 {[%emt 0:00:50]} Ne7 {[%emt 0:05:33]} 16. Bxe4 {[%emt 0:00:48]} hxg3 {[%emt 0:00:14]} 17. hxg3 {[%emt 0:00:44]} c5 {[%emt 0:02:39]} 18. Nf3 {[%emt 0:04:19]} a4 {[%emt 0:00:37]} 19. Bxf5 {[%emt 0:09:31]} Nxf5 {[%emt 0:01:15]} 20. dxc5 {[%emt 0:00:53]} axb3 {[%emt 0:01:09]} 21. Qxb3 {[%emt 0:00:14]} Bxb2 {[%emt 0:01:43]} 22. Qxb2 {[%emt 0:00:02]} Qe7 {[%emt 0:02:53]} 23. Nd4 {[%emt 0:06:08]} Nh6 {[%emt 0:03:41]} 24. Rb1 {[%emt 0:03:23]} Qxc5 {[%emt 0:09:13]} 25. Qxb7 {[%emt 0:00:20]} Rxa3 {[%emt 0:00:42]} 26. Qb4 {[%emt 0:00:44]} Qxb4 {[%emt 0:01:30]} 27. Rxb4 {[%emt 0:00:03]} Rc3 {[%emt 0:00:03]} 28. Nc6 {[%emt 0:03:10]} Kh7 {[%emt 0:03:09]} 29. Na5 {[%emt 0:02:56]} Rd8 {[%emt 0:01:10]} 30. Rfb1 {[%emt 0:01:01]} Ng4 {[%emt 0:01:50]} 31. c5 {[%emt 0:00:59]} Ne5 {[%emt 0:00:59]} 32. c6 {[%emt 0:00:30]} Rd2 {[%emt 0:07:24]} 33. R4b2 {[%emt 0:00:28]} Rdd3 {[%emt 0:02:59]} 34. Rb4 {[%emt 0:00:32]} Kg6 {[%emt 0:02:48]} 35. R4b3 {[%emt 0:00:32]} Rc5 {[%emt 0:02:44]} 36. Rxd3 {[%emt 0:00:28]} Nxd3 {[%emt 0:00:05]} 37. Nb3 {[%emt 0:00:32]} Rxc6 {[%emt 0:00:22]} 38. Nd4 {[%emt 0:00:14]} Ra6 {[%emt 0:00:04]} 39. Rd1 {[%emt 0:00:25]} Nc5 {[%emt 0:00:51]} 40. Rd2 {[%emt 0:00:42]} e5 {[%emt 0:00:35]} 41. Nb5 {[%emt 0:02:22]} Ne4 {[%emt 0:01:17]} 42. Rc2 {[%emt 0:00:55]} Ra5 {[%emt 0:01:24]} 43. Rb2 {[%emt 0:03:37]} Kf5 {[%emt 0:04:29]} 44. Rb4 {[%emt 0:07:21]} Nc5 {[%emt 0:04:35]} 45. Nc3 {[%emt 0:12:53]} Nd3 {[%emt 0:01:36]} 46. Rb7 {[%emt 0:01:39]} Ra1+ {[%emt 0:00:08]} 47. Kg2 {[%emt 0:04:28]} Ne1+ {[%emt 0:00:25]} 48. Kh3 {[%emt 0:00:08]} Kg6 {[%emt 0:02:24]} 49. g4 {[%emt 0:01:13]} Nd3 {[%emt 0:05:45]} 50. Kg2 {[%emt 0:00:12]} Rc1 {[%emt 0:00:48]} 51. Ne4 {[%emt 0:00:42]} Rc4 {[%emt 0:00:19]} 52. f3 {[%emt 0:00:38]} Rc2+ {[%emt 0:00:18]} 53. Kg3 {[%emt 0:00:26]} Re2 {[%emt 0:02:06]} 54. Rb6+ {[%emt 0:00:17]} f6 {[%emt 0:00:22]} 55. g5 {[%emt 0:00:26]} Rxe3 {[%emt 0:03:26]} 56. gxf6 {[%emt 0:00:05]} Ne1 {[%emt 0:01:31]} 57. fxg7+ {[%emt 0:01:16]} Kxg7 {[%emt 0:00:02]} 58. Kf2 {[%emt 0:00:23]} Rxf3+ {[%emt 0:00:00]} 59. Kxe1 {[%emt 0:00:08]} Re3+ {[%emt 0:00:03]} 60. Kf2 Rxe4 61. Kf3 Rf4+ 62. Ke3 {[%emt 0:00:54]} Kf7 {[%emt 0:00:01]} 63. Ra6 {[%emt 0:00:14]} Ke7 {[%emt 0:00:05]} 64. Rb6 {[%emt 0:00:08]} Rf6 {[%emt 0:00:34]} 65. Rxf6 {[%emt 0:00:16]} Kxf6 {[%emt 0:00:01]} 66. Ke4 {[%emt 0:00:06]} Ke6 {[%emt 0:00:02]} 67. Ke3 {[%emt 0:00:06]} Kd5 {[%emt 0:00:03]} 68. Kd3 {[%emt 0:00:04]} e4+ {[%emt 0:00:07]} 69. Ke3 {[%emt 0:00:03]} Ke5 {[%emt 0:00:04]} 70. Ke2 {[%emt 0:00:04]} Kd4 {[%emt 0:00:04]} 71. Kd2 {[%emt 0:00:02]} e3+ {[%emt 0:00:05]} 72. Ke2 {[%emt 0:00:03]} Ke4 {[%emt 0:00:04]} 73. Ke1 {[%emt 0:00:05]} Kf3 {[%emt 0:00:08]} 74. Kf1 {[%emt 0:00:03]} 1/2-1/2

[Event "III Duchamp Open 2019"]
[Site "Rio de Janeiro"]
[Date "2019.12.10"]
[Round "4.11"]
[White "Limp, Eduardo Thelio"]
[Black "Moura, Eduardo Eugenio Chav"]
[Result "1/2-1/2"]
[ECO "A41"]
[WhiteElo "2356"]
[BlackElo "2098"]
[Annotator "RC"]
[PlyCount "108"]
[EventDate "2019.12.07"]
[EventType "swiss"]
[EventCountry "BRA"]
[SourceTitle "playchess.com"]
[Source "ChessBase"]
[SourceQuality "1"]
[TimeControl "40/5400+30:1800+30"]

1. d4 {[%emt 0:00:00]} d6 {[%emt 0:00:00]} 2. e4 {[%emt 0:00:00]} Nf6 {[%emt 0:00:00]} 3. Nd2 {[%emt 0:00:00]} e5 {[%emt 0:00:00]} 4. c3 {[%emt 0:00:14]} Be7 {[%emt 0:00:24]} 5. Ngf3 {[%emt 0:00:12]} Nbd7 {[%emt 0:00:18]} 6. Be2 {[%emt 0:01:37]} O-O {[%emt 0:00:10]} 7. O-O {[%emt 0:00:09]} c6 {[%emt 0:00:07]} 8. a4 {[%emt 0:00:17]} a5 {[%emt 0:03:09]} 9. Re1 {[%emt 0:00:29]} Re8 {[%emt 0:00:13]} 10. Bf1 {[%emt 0:01:28]} Qc7 {[%emt 0:00:43]} 11. Qb3 {[%emt 0:02:16]} h6 {[%emt 0:05:08]} 12. Bc4 {[%emt 0:06:00]} Rf8 {[%emt 0:01:26]} 13. Bd3 {[%emt 0:02:37]} Re8 {[%emt 0:01:40]} 14. Nf1 {[%emt 0:03:35]} Nf8 {[%emt 0:01:04]} 15. Ne3 {[%emt 0:02:57]} Be6 {[%emt 0:08:46]} 16. Qc2 {[%emt 0:00:16]} Ng6 {[%emt 0:02:01]} 17. g3 {[%emt 0:01:29]} Bf8 {[%emt 0:05:35]} 18. Bd2 {[%emt 0:06:27]} Rad8 {[%emt 0:01:26]} 19. c4 {[%emt 0:07:25]} Bc8 {[%emt 0:12:16]} 20. Bc3 {[%emt 0:05:51]} exd4 {[%emt 0:15:22]} 21. Nxd4 {[%emt 0:00:09]} Ne5 {[%emt 0:01:52]} 22. Be2 {[%emt 0:00:17]} Ned7 {[%emt 0:05:34]} 23. Bf3 {[%emt 0:03:57]} Nc5 {[%emt 0:06:02]} 24. Nef5 {[%emt 0:05:45]} Nfd7 {[%emt 0:06:30]} 25. Rad1 {[%emt 0:04:41]} Ne5 {[%emt 0:04:36]} 26. Be2 {[%emt 0:01:46]} g6 {[%emt 0:07:40]} 27. Ne3 Ned7 28. Bf3 {[%emt 0:02:35]} Bg7 {[%emt 0:01:18]} 29. Bg2 Nf6 30. f3 {[%emt 0:02:26]} Ne6 {[%emt 0:04:10]} 31. Nb3 {[%emt 0:02:39]} b6 {[%emt 0:00:07]} 32. f4 {[%emt 0:04:52]} Nd7 {[%emt 0:00:38]} 33. Bxg7 {[%emt 0:03:57]} Kxg7 {[%emt 0:01:00]} 34. Qc3+ {[%emt 0:03:23]} Kh7 {[%emt 0:01:55]} 35. e5 {[%emt 0:01:21]} dxe5 36. Ng4 h5 {[%emt 0:04:52]} 37. Rxd7 {[%emt 0:02:33]} Bxd7 {[%emt 0:00:02]} 38. Nf6+ {[%emt 0:01:12]} Kg7 {[%emt 0:02:20]} 39. Nxe8+ {[%emt 0:12:05]} Rxe8 {[%emt 0:00:02]} 40. Rxe5 {[%emt 0:00:21]} f6 {[%emt 0:00:37]} 41. Re1 {[%emt 0:30:14]} c5 {[%emt 0:05:37]} 42. Bd5 {[%emt 0:00:00]} Nf8 {[%emt 0:05:03]} 43. Rxe8 {[%emt 0:00:00]} Bxe8 {[%emt 0:00:02]} 44. Nd2 {[%emt 0:00:00]} Bxa4 {[%emt 0:01:44]} 45. Ne4 {[%emt 0:00:00]} Qe7 {[%emt 0:00:43]} 46. Kf2 {[%emt 0:00:00]} Ne6 {[%emt 0:05:12]} 47. Qa3 {[%emt 0:00:00]} Bc2 {[%emt 0:01:52]} 48. Qe3 {[%emt 0:00:00]} Nd4 {[%emt 0:04:46]} 49. Nc3 {[%emt 0:00:00]} Qxe3+ {[%emt 0:00:58]} 50. Kxe3 {[%emt 0:00:00]} f5 {[%emt 0:07:57]} 51. h4 {[%emt 0:00:00]} Bb3 {[%emt 0:00:36]} 52. Kd3 {[%emt 0:00:00]} Bc2+ {[%emt 0:00:15]} 53. Kd2 {[%emt 0:00:00]} Bb3 {[%emt 0:00:02]} 54. Kd3 {[%emt 0:00:00]} Bc2+ {[%emt 0:00:03]} 1/2-1/2

[Event "III Duchamp Open 2019"]
[Site "Rio de Janeiro"]
[Date "2019.12.09"]
[Round "4.12"]
[White "Labussiere, Yago"]
[Black "Ambartsumova, Karina"]
[Result "0-1"]
[ECO "A41"]
[WhiteElo "2091"]
[BlackElo "2341"]
[Annotator "RC"]
[PlyCount "84"]
[EventDate "2019.12.07"]
[EventType "swiss"]
[EventCountry "BRA"]
[SourceTitle "playchess.com"]
[Source "ChessBase"]
[SourceQuality "1"]
[TimeControl "40/5400+30:1800+30"]

1. d4 {[%emt 0:04:37]} d6 {[%emt 0:00:00]} 2. c4 {[%emt 0:03:14]} e5 {[%emt 0:00:14]} 3. Nf3 {[%emt 0:01:45]} e4 {[%emt 0:01:38]} 4. Ng5 {[%emt 0:02:03]} f5 {[%emt 0:01:26]} 5. Nh3 {[%emt 0:03:48]} Nf6 {[%emt 0:02:41]} 6. Nc3 {[%emt 0:03:17]} Be7 {[%emt 0:03:06]} 7. e3 {[%emt 0:02:45]} O-O {[%emt 0:03:42]} 8. Be2 {[%emt 0:04:20]} c6 {[%emt 0:04:33]} 9. Nf4 {[%emt 0:05:30]} Na6 {[%emt 0:04:12]} 10. h4 {[%emt 0:03:06]} Nc7 {[%emt 0:03:16]} 11. b4 {[%emt 0:12:53]} Ne6 {[%emt 0:22:09]} 12. g3 {[%emt 0:11:30]} Nxf4 {[%emt 0:04:17]} 13. exf4 {[%emt 0:13:23]} d5 {[%emt 0:07:25]} 14. c5 {[%emt 0:00:32]} b6 {[%emt 0:00:49]} 15. a3 {[%emt 0:15:57]} a5 {[%emt 0:04:55]} 16. Be3 {[%emt 0:01:45]} Ba6 {[%emt 0:01:44]} 17. Bxa6 {[%emt 0:04:02]} Rxa6 {[%emt 0:00:05]} 18. O-O {[%emt 0:01:12]} Qd7 {[%emt 0:12:16]} 19. Qe2 {[%emt 0:02:24]} b5 {[%emt 0:02:41]} 20. Rab1 {[%emt 0:01:14]} axb4 {[%emt 0:01:32]} 21. axb4 {[%emt 0:00:20]} Rfa8 {[%emt 0:00:39]} 22. Rb2 {[%emt 0:00:46]} Ne8 {[%emt 0:01:31]} 23. Rc1 {[%emt 0:00:35]} Nc7 {[%emt 0:01:30]} 24. Rcc2 {[%emt 0:00:20]} Ne6 {[%emt 0:00:37]} 25. Ra2 {[%emt 0:00:19]} Bf6 {[%emt 0:01:21]} 26. Qd2 {[%emt 0:00:37]} Rxa2 {[%emt 0:02:48]} 27. Rxa2 {[%emt 0:00:07]} Rxa2 {[%emt 0:00:40]} 28. Nxa2 {[%emt 0:00:02]} Qa7 {[%emt 0:00:10]} 29. Nc3 {[%emt 0:01:27]} Qa3 {[%emt 0:05:44]} 30. Ne2 {[%emt 0:00:16]} Nc7 {[%emt 0:00:39]} 31. Qc3 {[%emt 0:00:45]} Qa4 {[%emt 0:00:16]} 32. Qe1 {[%emt 0:00:35]} Qc2 {[%emt 0:02:14]} 33. Bd2 {[%emt 0:00:29]} Ne6 {[%emt 0:00:17]} 34. Bc3 {[%emt 0:00:33]} Qd3 {[%emt 0:00:36]} 35. Nc1 {[%emt 0:00:29]} Qc4 {[%emt 0:00:24]} 36. Ne2 {[%emt 0:00:29]} Nxd4 {[%emt 0:01:04]} 37. Nxd4 {[%emt 0:00:31]} Bxd4 {[%emt 0:00:01]} 38. Qa1 {[%emt 0:00:21]} Qxc3 {[%emt 0:02:25]} 39. Qa8+ {[%emt 0:00:10]} Kf7 {[%emt 0:00:01]} 40. Qb7+ {[%emt 0:00:29]} Kg6 {[%emt 0:00:17]} 41. Qxc6+ {[%emt 0:02:36]} Kh5 {[%emt 0:00:25]} 42. Qe8+ {[%emt 0:00:57]} Kg4 {[%emt 0:00:46]} 0-1

[Event "III Duchamp Open 2019"]
[Site "Rio de Janeiro"]
[Date "2019.12.09"]
[Round "4.13"]
[White "Torella, Rodolfo"]
[Black "Guimaraes, Diogo Duarte"]
[Result "0-1"]
[ECO "C24"]
[WhiteElo "2085"]
[BlackElo "2322"]
[Annotator "RC"]
[PlyCount "48"]
[EventDate "2019.12.07"]
[EventType "swiss"]
[EventCountry "BRA"]
[SourceTitle "playchess.com"]
[Source "ChessBase"]
[SourceQuality "1"]
[TimeControl "40/5400+30:1800+30"]

1. e4 {[%emt 0:00:00]} e5 {[%emt 0:19:13]} 2. Bc4 {[%emt 0:00:05]} Nf6 {[%emt 0:00:06]} 3. d3 {[%emt 0:00:16]} c6 {[%emt 0:00:04]} 4. Nf3 {[%emt 0:00:49]} d5 {[%emt 0:00:13]} 5. Bb3 {[%emt 0:00:48]} Bd6 {[%emt 0:00:05]} 6. Nc3 {[%emt 0:05:53]} Be6 {[%emt 0:05:07]} 7. Bg5 {[%emt 0:06:57]} Bc7 {[%emt 0:06:49]} 8. exd5 {[%emt 0:09:58]} cxd5 {[%emt 0:00:06]} 9. Qe2 {[%emt 0:00:45]} Nc6 {[%emt 0:00:48]} 10. O-O-O {[%emt 0:14:13]} O-O {[%emt 0:05:04]} 11. d4 {[%emt 0:05:28]} e4 {[%emt 0:00:49]} 12. Ng1 {[%emt 0:14:28]} h6 {[%emt 0:01:05]} 13. Bh4 {[%emt 0:08:38]} Bb6 {[%emt 0:00:35]} 14. Nxe4 {[%emt 0:05:14]} dxe4 {[%emt 0:00:19]} 15. d5 {[%emt 0:00:07]} Nd4 {[%emt 0:05:13]} 16. Rxd4 {[%emt 0:00:15]} Bxd4 {[%emt 0:00:07]} 17. dxe6 {[%emt 0:00:05]} fxe6 {[%emt 0:00:38]} 18. Bxe6+ {[%emt 0:02:24]} Kh8 {[%emt 0:00:06]} 19. c3 {[%emt 0:02:56]} Qd6 {[%emt 0:00:20]} 20. Bb3 {[%emt 0:03:45]} Bxc3 {[%emt 0:02:10]} 21. Bxf6 {[%emt 0:01:15]} Bxf6 {[%emt 0:00:26]} 22. Qxe4 {[%emt 0:00:27]} Rac8+ {[%emt 0:00:51]} 23. Bc2 {[%emt 0:00:25]} Bg5+ {[%emt 0:00:09]} 24. Kb1 {[%emt 0:00:31]} Qd1+ 0-1

[Event "III Duchamp Open 2019"]
[Site "Rio de Janeiro"]
[Date "2019.12.11"]
[Round "5.5"]
[White "Donoso Diaz, Sebastian"]
[Black "Supi, Luis Paulo"]
[Result "0-1"]
[ECO "A30"]
[WhiteElo "2234"]
[BlackElo "2578"]
[Annotator "ChessBase"]
[PlyCount "117"]
[EventDate "2019.12.07"]
[EventType "swiss"]
[EventCountry "BRA"]
[SourceTitle "playchess.com"]
[Source "ChessBase"]
[SourceQuality "1"]
[TimeControl "40/5400+30:1800+30"]

1. c4 {[%emt 0:00:00]} c5 {[%emt 0:00:04]} 2. Nf3 {[%emt 0:00:01]} Nf6 {[%emt 0:01:07]} 3. Nc3 {[%emt 0:02:30]} e6 {[%emt 0:02:10]} 4. e3 {[%emt 0:00:56]} d5 {[%emt 0:01:34]} 5. cxd5 {[%emt 0:00:47]} exd5 {[%emt 0:00:37]} 6. d4 {[%emt 0:01:14]} Nc6 {[%emt 0:00:34]} 7. Be2 {[%emt 0:00:18]} Bd6 {[%emt 0:00:41]} 8. dxc5 {[%emt 0:01:06]} Bxc5 {[%emt 0:00:03]} 9. O-O {[%emt 0:00:31]} O-O {[%emt 0:00:06]} 10. b3 {[%emt 0:00:58]} a6 {[%emt 0:03:58]} 11. Bb2 {[%emt 0:00:12]} Ba7 {[%emt 0:01:33]} 12. Rc1 {[%emt 0:07:37]} Qd6 {[%emt 0:03:58]} 13. Na4 {[%emt 0:11:23]} Rd8 {[%emt 0:01:39]} 14. Nd4 {[%emt 0:04:31]} Bd7 {[%emt 0:10:29]} 15. Qd3 {[%emt 0:23:14]} Ne5 {[%emt 0:12:13]} 16. Qb1 {[%emt 0:05:15]} Neg4 {[%emt 0:01:35]} 17. Bxg4 {[%emt 0:04:38]} Nxg4 {[%emt 0:00:14]} 18. Nf3 {[%emt 0:00:18]} d4 {[%emt 0:08:38]} 19. h3 {[%emt 0:05:37]} Nxf2 {[%emt 0:02:20]} 20. Rxf2 {[%emt 0:00:47]} dxe3 {[%emt 0:00:12]} 21. Re2 {[%emt 0:00:59]} Bb5 {[%emt 0:01:09]} 22. Rce1 {[%emt 0:07:30]} Bxe2 {[%emt 0:05:38]} 23. Rxe2 {[%emt 0:00:12]} Rac8 {[%emt 0:02:02]} 24. Qe4 {[%emt 0:06:32]} b5 {[%emt 0:04:48]} 25. Nc3 {[%emt 0:01:11]} Qd3 {[%emt 0:03:04]} 26. Qh4 {[%emt 0:01:46]} Re8 {[%emt 0:04:53]} 27. Qe1 {[%emt 0:02:44]} b4 {[%emt 0:03:26]} 28. Na4 {[%emt 0:01:34]} Rc2 {[%emt 0:01:28]} 29. Rxc2 {[%emt 0:00:06]} Qxc2 {[%emt 0:00:12]} 30. Bd4 {[%emt 0:00:44]} Bxd4 {[%emt 0:00:33]} 31. Nxd4 {[%emt 0:00:06]} Qd2 {[%emt 0:00:01]} 32. Nf3 {[%emt 0:00:32]} Qxa2 {[%emt 0:05:19]} 33. Qxb4 {[%emt 0:00:12]} Qf2+ {[%emt 0:00:20]} 34. Kh2 {[%emt 0:00:18]} e2 {[%emt 0:00:03]} 35. Ne1 {[%emt 0:01:25]} h5 {[%emt 0:01:16]} 36. Nb2 {[%emt 0:00:44]} h4 {[%emt 0:06:57]} 37. Nbd3 {[%emt 0:00:05]} Qg3+ {[%emt 0:00:05]} 38. Kh1 {[%emt 0:00:41]} Re3 {[%emt 0:00:44]} 39. Qa4 {[%emt 0:01:13]} Qd6 {[%emt 0:03:36]} 40. Qc4 {[%emt 0:03:38]} g6 {[%emt 0:05:37]} 41. b4 {[%emt 0:31:50]} Qf6 {[%emt 0:32:46]} 42. b5 {[%emt 0:00:00]} axb5 {[%emt 0:00:00]} 43. Qxb5 {[%emt 0:00:00]} Qd4 {[%emt 0:00:00]} 44. Kh2 {[%emt 0:00:00]} Kg7 {[%emt 0:00:00]} 45. Qa6 {[%emt 0:00:00]} Re6 {[%emt 0:00:00]} 46. Qb5 {[%emt 0:00:00]} Rf6 {[%emt 0:00:00]} 47. Qe5 {[%emt 0:00:00]} Qxe5+ {[%emt 0:00:00]} 48. Nxe5 {[%emt 0:00:00]} Rf1 {[%emt 0:00:00]} 49. N5f3 {[%emt 0:00:00]} g5 {[%emt 0:00:00]} 50. g4 {[%emt 0:00:00]} f6 {[%emt 0:00:00]} 51. Kg2 {[%emt 0:00:00]} Kf7 {[%emt 0:00:00]} 52. Nc2 {[%emt 0:00:00]} Ke7 {[%emt 0:00:00]} 53. Nfe1 {[%emt 0:00:00]} Kd7 {[%emt 0:00:14]} 54. Nd3 {[%emt 0:00:00]} Kc7 {[%emt 0:01:14]} 55. Nde1 {[%emt 0:00:00]} Kb6 {[%emt 0:00:58]} 56. Nd3 {[%emt 0:00:00]} Ka5 {[%emt 0:01:10]} 57. Nde1 {[%emt 0:00:00]} Ka4 {[%emt 0:02:01]} 58. Nf3 {[%emt 0:06:47]} Rxf3 {[%emt 0:00:15]} 59. Kh2 0-1

[Event "III Duchamp Open 2019"]
[Site "Rio de Janeiro"]
[Date "2019.12.11"]
[Round "5.8"]
[White "Carraro, Denise"]
[Black "Molina, Roberto Junio Brito"]
[Result "1-0"]
[ECO "B83"]
[WhiteElo "2177"]
[BlackElo "2448"]
[Annotator "ChessBase"]
[PlyCount "99"]
[EventDate "2019.12.07"]
[EventType "swiss"]
[EventCountry "BRA"]
[SourceTitle "playchess.com"]
[Source "ChessBase"]
[SourceQuality "1"]
[TimeControl "40/5400+30:1800+30"]

1. e4 {[%emt 0:00:00]} c5 {[%emt 0:00:02]} 2. Nf3 {[%emt 0:00:00]} e6 {[%emt 0:00:03]} 3. d4 {[%emt 0:00:00]} cxd4 {[%emt 0:00:04]} 4. Nxd4 {[%emt 0:00:00]} Nf6 {[%emt 0:00:11]} 5. Nc3 {[%emt 0:00:00]} d6 {[%emt 0:00:04]} 6. Be2 {[%emt 0:00:49]} Nc6 {[%emt 0:00:21]} 7. Be3 {[%emt 0:00:16]} Be7 {[%emt 0:00:22]} 8. O-O {[%emt 0:00:05]} O-O {[%emt 0:00:21]} 9. f4 {[%emt 0:01:43]} a6 {[%emt 0:01:42]} 10. a4 {[%emt 0:00:05]} Qc7 {[%emt 0:01:01]} 11. Kh1 {[%emt 0:00:10]} Bd7 {[%emt 0:01:50]} 12. Qe1 {[%emt 0:05:46]} Nxd4 {[%emt 0:01:31]} 13. Bxd4 {[%emt 0:00:02]} Bc6 {[%emt 0:00:23]} 14. Qg3 {[%emt 0:05:49]} g6 {[%emt 0:04:33]} 15. Bd3 {[%emt 0:13:32]} e5 {[%emt 0:16:07]} 16. fxe5 {[%emt 0:00:41]} Nh5 {[%emt 0:00:14]} 17. Qf2 {[%emt 0:00:58]} dxe5 {[%emt 0:00:13]} 18. Bb6 {[%emt 0:00:02]} Qc8 {[%emt 0:06:48]} 19. Be3 {[%emt 0:14:07]} Ng7 {[%emt 0:15:51]} 20. Bh6 {[%emt 0:10:08]} Kh8 {[%emt 0:00:54]} 21. Qg3 {[%emt 0:08:32]} f6 {[%emt 0:00:28]} 22. Rad1 {[%emt 0:02:28]} Qe8 {[%emt 0:04:41]} 23. b3 {[%emt 0:14:22]} Rd8 {[%emt 0:00:34]} 24. Nd5 {[%emt 0:03:46]} Bxd5 {[%emt 0:01:18]} 25. exd5 {[%emt 0:00:02]} Bd6 {[%emt 0:00:54]} 26. Qe3 {[%emt 0:00:53]} f5 {[%emt 0:00:49]} 27. c4 {[%emt 0:08:55]} Rc8 {[%emt 0:02:17]} 28. Qb6 {[%emt 0:02:24]} Qe7 {[%emt 0:00:42]} 29. Bg5 {[%emt 0:00:06]} Qxg5 {[%emt 0:07:42]} 30. Qxd6 {[%emt 0:00:04]} e4 {[%emt 0:00:32]} 31. Bc2 {[%emt 0:05:59]} Rce8 {[%emt 0:02:59]} 32. Rde1 {[%emt 0:01:47]} Kg8 {[%emt 0:13:00]} 33. Qb4 {[%emt 0:01:10]} Rf7 {[%emt 0:01:27]} 34. c5 {[%emt 0:00:21]} Nh5 {[%emt 0:00:39]} 35. Qd4 {[%emt 0:00:32]} a5 {[%emt 0:02:52]} 36. d6 {[%emt 0:00:20]} Nf4 {[%emt 0:06:23]} 37. Qf2 Ne6 {[%emt 0:02:43]} 38. Bxe4 {[%emt 0:00:43]} f4 {[%emt 0:02:38]} 39. Bxb7 {[%emt 0:00:40]} Rxb7 {[%emt 0:01:27]} 40. c6 {[%emt 0:00:14]} Rbb8 {[%emt 0:02:46]} 41. c7 {[%emt 0:32:28]} Nxc7 {[%emt 0:03:39]} 42. dxc7 {[%emt 0:00:00]} Rbc8 {[%emt 0:00:01]} 43. Rxe8+ {[%emt 0:00:00]} Rxe8 {[%emt 0:00:01]} 44. Qc2 {[%emt 0:00:00]} Rc8 {[%emt 0:01:19]} 45. Qc4+ {[%emt 0:00:00]} Kg7 {[%emt 0:01:37]} 46. Qd4+ {[%emt 0:00:00]} Kg8 {[%emt 0:00:23]} 47. Qd7 {[%emt 0:00:00]} Qf5 {[%emt 0:00:21]} 48. Rd1 {[%emt 0:00:00]} f3 {[%emt 0:02:03]} 49. Qxc8+ Qxc8 {[%emt 0:00:02]} 50. Rd8+ {[%emt 0:00:00]} 1-0